bitfinex-derivatives/quotes_SOLF0:USTF0_20251107
["timestamp","ask_amount","ask_price","bid_price","bid_amount"]
[1762527124205,3.07,153.48,153.29,3.05]
[1762527124405,3.07,153.44,153.29,3.05]
[1762527124805,3.07,153.44,153.35,0.04201433]
[1762527124806,0.04447344,153.38,153.35,0.04201433]
[1762527125511,3.14447344,153.38,153.35,0.04201433]
[1762527125710,4.44447344,153.38,153.35,0.04201433]
[1762527125910,0.04447344,153.38,153.35,0.04201433]
[1762527126114,3.14447344,153.38,153.25,3.0]
[1762527126415,3.1,153.38,153.25,3.0]
[1762527127008,15.48321709,153.43,153.26,3.0]
[1762527127009,3.1,153.43,153.26,3.0]
[1762527127321,3.1,153.49,153.34,3.0]
[1762527128222,3.1,153.42,153.4,0.04965792]
[1762527128433,3.1,153.42,153.39,0.04891085]
[1762527128625,1.3,153.41,153.28,3.0]
[1762527128820,3.1,153.42,153.3,3.0]
[1762527129123,3.1,153.42,153.31,3.0]
[1762527129526,5.7403306,153.54,153.34,3.0]
[1762527129527,3.1,153.48,153.34,3.0]
[1762527129720,3.1,153.48,153.27,5.7403306]
[1762527129721,0.04220762,153.43,153.39,8.78955236]
[1762527130021,3.1,153.54,153.43,3.0]
[1762527130814,0.04393574,153.5,153.47,0.04632338]
[1762527131418,0.04393574,153.5,153.47,3.04632338]
[1762527132119,93.9,153.71,153.47,3.04632338]
[1762527132120,3.1,153.63,153.47,3.04632338]
[1762527132328,3.1,153.63,153.49,3.0]
[1762527132632,3.1,153.63,153.44,3.0]
[1762527133236,0.04529666,153.55,153.52,0.04505687]
[1762527133622,4.44529666,153.55,153.52,0.04505687]
[1762527133829,3.14529666,153.55,153.52,0.04505687]
[1762527134024,3.1,153.54,153.52,0.04505687]
[1762527134229,3.1,153.54,153.44,3.0]
[1762527134530,15.50411094,153.6,153.44,3.0]
[1762527134531,3.1,153.59,153.44,3.0]
[1762527135231,0.04676513,153.53,153.5,0.04378583]
[1762527135427,3.14676513,153.53,153.5,0.04378583]
[1762527135935,0.04676513,153.53,153.5,0.04378583]
[1762527136334,3.1,153.63,153.5,3.04378583]
[1762527136634,15.50411094,153.7,153.5,3.04378583]
[1762527136635,3.1,153.68,153.5,3.0]
[1762527136833,3.1,153.68,153.53,3.0]
[1762527137542,0.04333301,153.62,153.59,0.04740557]
[1762527137938,0.04333301,153.62,153.59,3.04740557]
[1762527138730,3.1,153.73,153.59,3.04740557]
[1762527138935,3.1,153.73,153.59,3.0]
[1762527139338,3.1,153.73,153.56,15.50411094]
[1762527139339,3.1,153.81,153.61,3.0]
[1762527139736,3.1,153.72,153.69,0.0440613]
[1762527139940,3.14402086,153.72,153.69,0.04275494]
[1762527140447,0.04402086,153.72,153.69,0.04275494]
[1762527141747,0.04402086,153.72,153.69,3.04275494]
[1762527142240,3.1,153.83,153.69,3.04275494]
[1762527142445,3.1,153.91,153.7,3.0]
[1762527143437,3.14972643,153.82,153.79,0.0448838]
[1762527143638,3.1,153.82,153.7,3.0]
[1762527144044,0.04449941,153.78,153.74,0.04437262]
[1762527145544,3.14449941,153.78,153.74,0.04437262]
[1762527146145,3.1,153.77,153.74,0.04437262]
[1762527146546,3.14449941,153.78,153.74,0.04437262]
[1762527146944,4.44449941,153.78,153.65,3.0]
[1762527147144,3.1,153.77,153.6,3.0]
[1762527147447,1.13216755,153.79,153.64,3.0]
[1762527147757,3.1,153.82,153.64,3.0]
[1762527148047,3.1,153.82,153.71,0.04377222]
[1762527148048,0.04603986,153.75,153.71,0.04377222]
[1762527148246,0.04603986,153.75,153.71,0.04939185]
[1762527148746,3.14603986,153.75,153.71,0.04939185]
[1762527148944,0.04603986,153.75,153.71,0.04939185]
[1762527149145,0.04603986,153.75,153.71,3.04939185]
[1762527149347,0.04603986,153.75,153.71,0.04939185]
[1762527149647,0.04603986,153.75,153.71,3.04939185]
[1762527149847,3.1,153.86,153.71,3.04939185]
[1762527150049,3.1,153.86,153.71,3.0]
[1762527150844,0.04644065,153.8,153.77,0.04479388]
[1762527151754,3.1,153.9,153.79,3.0]
[1762527152355,3.1,153.9,153.74,3.0]
[1762527152653,0.04462752,153.84,153.8,3.0425625]
[1762527152849,0.04462752,153.84,153.8,3.04624278]
[1762527153348,0.04462752,153.84,153.8,0.04624278]
[1762527153547,3.14462752,153.84,153.8,0.04624278]
[1762527154054,0.04462752,153.84,153.8,0.04624278]
[1762527154752,0.04462752,153.84,153.8,3.04624278]
[1762527155249,3.15,154.02,153.81,3.23]
[1762527155445,3.15,154.02,153.83,3.23]
[1762527156046,0.04103606,153.94,153.91,0.04724157]
[1762527156344,3.15,153.93,153.91,0.0449513]
[1762527156646,3.15,153.93,153.78,3.23]
[1762527156647,3.15,153.92,153.78,3.23]
[1762527157745,0.04532493,153.87,153.83,0.04624162]
[1762527159352,3.15,153.86,153.83,0.04624162]
[1762527159555,3.15,153.86,153.73,3.23]
[1762527159556,3.15,153.85,153.73,3.23]
[1762527160854,0.04950575,153.81,153.77,0.04663751]
[1762527161054,0.04950575,153.81,153.77,3.23663751]
[1762527161549,3.02,153.96,153.77,3.23663751]
[1762527161758,3.02,153.96,153.8,9.72123323]
[1762527162057,3.02,154.01,153.85,3.19]
[1762527162754,0.04636633,153.95,153.91,0.04972674]
[1762527162960,0.04636633,153.95,153.91,0.04912849]
[1762527163458,3.06636633,153.95,153.91,0.04912849]
[1762527163858,0.04636633,153.95,153.91,0.04912849]
[1762527164059,3.06636633,153.95,153.91,0.04912849]
[1762527164956,0.04636633,153.95,153.91,0.04912849]
[1762527165159,0.04636633,153.95,153.91,3.23912849]
[1762527165458,3.06636633,153.95,153.91,0.04912849]
[1762527166445,0.04636633,153.95,153.91,0.04912849]
[1762527167258,119.95679566,154.2,153.91,3.23912849]
[1762527167259,3.02,154.06,153.91,3.23912849]
[1762527167447,1.13025544,154.09,153.92,3.19]
[1762527167851,3.02,154.11,153.92,3.19]
[1762527168461,0.04406251,154.03,154.0,0.04848853]
[1762527168648,0.04497645,154.03,154.0,0.04898392]
[1762527169055,0.04497645,154.03,154.0,3.23898392]
[1762527169254,3.02,154.12,154.0,3.23898392]
[1762527169453,3.02,154.12,154.0,3.19]
[1762527170360,3.02,154.07,154.04,0.04103682]
[1762527170560,3.0636074,154.07,154.04,0.04862547]
[1762527171059,0.0436074,154.07,154.04,0.04862547]
[1762527171456,3.0636074,154.07,154.04,0.04862547]
[1762527172061,0.0436074,154.07,154.04,0.04862547]
[1762527172655,0.0436074,154.07,154.04,3.23862547]
[1762527172860,0.0436074,154.07,154.04,0.04862547]
[1762527174260,0.0436074,154.07,154.04,3.23862547]
[1762527175268,0.0436074,154.07,154.04,0.04862547]
[1762527175962,3.0636074,154.07,154.04,0.04862547]
[1762527176165,0.0436074,154.07,154.04,0.04862547]
[1762527177261,3.0636074,154.07,154.04,0.04862547]
[1762527177467,0.0436074,154.07,153.93,3.19]
[1762527177766,3.02,154.11,153.93,3.19]
[1762527177965,3.02,154.11,153.99,3.19]
[1762527178367,3.02,154.11,153.94,3.19]
[1762527178559,8.867,154.04,154.03,0.04487924]
[1762527178756,8.867,154.04,153.94,3.19]
[1762527178757,3.02,154.03,154.02,0.04103219]
[1762527179059,3.02,154.01,153.89,3.19]
[1762527179565,5.85,153.96,153.89,3.19]
[1762527179965,3.02,154.01,153.86,75.54]
[1762527180161,3.02,154.01,153.89,0.04964024]
[1762527180162,0.04291701,153.93,153.89,0.04964024]
[1762527180461,26.31679566,154.05,153.89,0.04964024]
[1762527180462,3.02,154.06,153.89,3.23532282]
[1762527180665,3.02,154.06,153.94,3.19]
[1762527182570,0.04459684,153.96,153.93,0.04249323]
[1762527182758,0.04459684,153.96,153.93,3.23249323]
[1762527182954,117.22299566,154.12,153.93,3.23249323]
[1762527182955,3.02,154.06,153.93,3.23249323]
[1762527183259,3.02,154.06,153.93,3.19]
[1762527183873,3.02,154.14,153.95,3.19]
[1762527184169,0.04477289,154.06,154.03,3.23886362]
[1762527184377,3.02,154.14,154.03,3.23842124]
[1762527184667,3.02,154.19,154.05,3.19]
[1762527184864,3.02,154.19,154.05,9.0361]
[1762527185066,3.18,154.26,154.05,3.19]
[1762527185365,3.18,154.26,154.04,26.31679566]
[1762527185366,3.18,154.26,154.14,3.17]
[1762527185568,3.18,154.26,154.14,3.21699593]
[1762527185759,3.18,154.26,154.14,3.17]
[1762527185967,5.8399,154.23,154.14,3.17]
[1762527186370,3.18,154.26,154.14,3.17]
[1762527186560,90.7829,154.33,154.14,3.17]
[1762527186561,0.04668715,154.22,154.18,0.0476064]
[1762527186761,0.04783624,154.22,154.19,3.17]
[1762527186969,0.04783624,154.22,154.18,0.04824651]
[1762527187168,3.22783624,154.22,154.18,0.04824651]
[1762527187360,3.18,154.2,154.09,3.17]
[1762527187567,5.8423,154.16,154.05,3.17]
[1762527188070,3.18,154.2,154.07,3.17]
[1762527188373,0.04623668,154.15,154.12,3.21673299]
[1762527188674,5.843,154.14,154.12,0.04575991]
[1762527189366,0.04971739,154.15,154.12,0.04575991]
[1762527189367,3.22971739,154.15,154.12,0.04575991]
[1762527189571,0.04971739,154.15,154.12,0.04575991]
[1762527189763,5.843,154.14,154.12,0.04575991]
[1762527190274,9.023,154.14,154.12,0.04575991]
[1762527190472,3.18,154.13,153.92,282.58309338]
[1762527190673,3.18,154.13,153.95,9.66910427]
[1762527190972,3.18,154.18,154.03,9.66910427]
[1762527191372,3.18,154.23,154.07,9.66910427]
[1762527191567,0.0414777,154.17,154.13,0.04121219]
[1762527191771,0.0414777,154.17,154.11,9.66910427]
[1762527192070,0.04691599,154.16,154.13,0.04105625]
[1762527192269,0.04287535,154.16,154.13,5.88944876]
[1762527192469,3.18,154.28,154.13,3.21624876]
[1762527192767,3.18,154.28,154.0,29.19910427]
[1762527192768,3.18,154.19,154.04,3.17]
[1762527192970,3.18,154.17,153.99,12.83910427]
[1762527193168,3.18,154.17,153.94,63.12]
[1762527193169,3.18,154.12,153.94,66.29]
[1762527193360,3.22609026,154.05,154.01,0.04723862]
[1762527193564,3.22609026,154.05,154.01,0.04323462]
[1762527193766,5.8472,154.03,154.01,0.04323462]
[1762527194167,0.04609026,154.05,154.01,0.04323462]
[1762527194368,0.04609026,154.05,154.02,3.17]
[1762527194560,0.04609026,154.05,154.01,3.21323462]
[1762527195167,0.04609026,154.05,154.01,0.04323462]
[1762527195368,0.04609026,154.05,154.01,3.21323462]
[1762527195965,0.04609026,154.05,154.01,0.04323462]
[1762527196268,3.22609026,154.05,154.01,0.04323462]
[1762527196678,3.18,154.04,154.01,0.04323462]
[1762527196971,3.18,154.03,153.9,3.17]
[1762527197573,5.848,154.01,153.9,3.17]
[1762527197876,100.58970427,154.1,153.94,3.21950805]
[1762527197877,0.04717536,153.97,153.94,3.21950805]
[1762527198073,0.04959648,153.97,153.94,3.21589357]
[1762527198775,3.18,154.09,153.96,5.8499]
[1762527198968,9.0252,154.09,153.96,9.0199]
[1762527199171,3.18,154.09,153.96,3.17]
[1762527199668,3.18,154.09,153.91,3.17]
[1762527199865,3.22882228,154.02,153.98,0.04381178]
[1762527200178,0.04882228,154.02,153.98,0.04975996]
[1762527200472,3.22882228,154.02,153.98,0.04975996]
[1762527200873,0.04882228,154.02,153.98,0.04975996]
[1762527201375,0.04882228,154.02,153.98,3.21975996]
[1762527202075,0.04882228,154.02,153.98,0.04975996]
[1762527202271,0.04882228,154.02,153.98,3.21975996]
[1762527202476,90.8845,154.16,153.98,3.21975996]
[1762527202778,3.18,154.15,153.99,65.17]
[1762527203269,3.18,154.1,153.94,3.17]
[1762527203579,3.18,154.03,153.89,3.17]
[1762527204075,3.18,154.03,153.9,3.17]
[1762527204472,3.18,154.11,153.92,3.17]
[1762527204669,0.04479759,154.03,154.0,0.04526702]
[1762527204870,5.8476,154.02,154.0,0.04633732]
[1762527205076,3.18,154.01,153.87,3.17]
[1762527205579,5.8515,153.93,153.87,3.17]
[1762527205774,3.18,153.97,153.85,75.36]
[1762527206076,0.04980056,153.93,153.89,0.04964804]
[1762527206279,0.04281412,153.93,153.9,3.17]
[1762527206479,0.04281412,153.93,153.89,0.04178635]
[1762527207078,5.8519,153.91,153.89,0.04178635]
[1762527207382,3.18,153.9,153.89,0.04178635]
[1762527207786,5.8533,153.88,153.78,5.89457283]
[1762527208084,3.18,153.9,153.78,3.17]
[1762527208292,5.8557,153.81,153.76,5.89457283]
[1762527208482,3.18,153.81,153.72,3.17]
[1762527208777,0.04469778,153.78,153.75,0.04484323]
[1762527208981,3.22469778,153.78,153.75,0.04484323]
[1762527209377,0.04469778,153.78,153.75,0.04484323]
[1762527210480,26.2860895,153.97,153.75,3.21484323]
[1762527210673,3.18,153.9,153.75,3.17]
[1762527211180,3.18,153.95,153.79,3.17]
[1762527211380,5.8511,153.94,153.79,3.17]
[1762527211682,0.04766165,153.88,153.85,0.04788008]
[1762527211984,0.04606097,153.88,153.85,0.04539026]
[1762527212182,0.04606097,153.88,153.85,3.21539026]
[1762527212887,3.18,153.99,153.85,3.21539026]
[1762527213184,3.18,153.99,153.85,3.17]
[1762527213382,3.18,153.97,153.79,9.06457283]
[1762527213587,3.18,153.97,153.8,65.17]
[1762527213884,3.18,153.95,153.8,65.17]
[1762527214080,5.8529,153.89,153.87,0.04342993]
[1762527214283,3.22422136,153.9,153.86,0.04445978]
[1762527214481,3.22312836,153.9,153.86,0.04445978]
[1762527214684,0.04312836,153.9,153.86,0.04445978]
[1762527215184,3.26,154.0,153.88,3.17]
[1762527215583,3.26,154.0,153.83,3.17]
[1762527215789,3.26,153.96,153.83,3.17]
[1762527216175,0.04717707,153.91,153.88,0.04387227]
[1762527216381,3.30717707,153.91,153.88,0.04387227]
[1762527216582,3.26,153.89,153.73,78.51]
[1762527216780,91.0661,153.85,153.67,3.17]
[1762527216981,3.26,153.81,153.67,3.17]
[1762527217285,3.26,153.8,153.66,281.14973896]
[1762527217480,3.26,153.8,153.62,3.17]
[1762527217681,5.859,153.73,153.71,0.04130486]
[1762527217881,0.04096314,153.75,153.71,0.04130486]
[1762527218186,5.859,153.73,153.71,0.04130486]
[1762527218376,0.04096314,153.75,153.71,0.04130486]
[1762527218778,3.30096314,153.75,153.71,0.04130486]
[1762527219085,0.04096314,153.75,153.71,0.04130486]
[1762527219287,0.04096314,153.75,153.71,3.21130486]
[1762527219983,0.04096314,153.75,153.71,0.04130486]
[1762527220785,5.859,153.73,153.71,0.04130486]
[1762527220986,8.929,153.73,153.71,0.04130486]
[1762527221185,0.04096314,153.75,153.71,0.04130486]
[1762527221378,3.11096314,153.75,153.71,0.04130486]
[1762527221587,3.07,153.74,153.71,0.04130486]
[1762527221785,3.07,153.74,153.64,3.13]
[1762527222090,3.07,153.79,153.64,3.13]
[1762527222388,5.8583,153.74,153.64,3.13]
[1762527222686,3.07,153.79,153.58,75.32]
[1762527222687,3.07,153.75,153.58,78.45]
[1762527222991,0.04638065,153.68,153.65,0.04924387]
[1762527223187,0.04605532,153.68,153.65,0.04730986]
[1762527223579,0.04605532,153.68,153.65,3.17730986]
[1762527223790,0.04605532,153.68,153.65,0.04730986]
[1762527224493,5.8613,153.67,153.55,3.13]
[1762527224994,5.8618,153.65,153.56,3.13]
[1762527225178,3.07,153.72,153.56,3.13]
[1762527225587,0.04775005,153.66,153.62,3.17474223]
[1762527225788,3.11775005,153.66,153.62,0.04987641]
[1762527226681,0.04775005,153.66,153.62,3.17987641]
[1762527226992,91.0872,153.82,153.62,3.17987641]
[1762527226993,3.07,153.76,153.62,3.17987641]
[1762527227295,3.07,153.76,153.66,3.13]
[1762527227688,5.8591,153.72,153.66,3.13]
[1762527227887,3.07,153.76,153.66,3.13]
[1762527228093,0.04124508,153.73,153.69,0.04522066]
[1762527228290,0.04875744,153.73,153.69,3.17798218]
[1762527228590,3.11875744,153.73,153.69,0.04798218]
[1762527228791,5.8598,153.71,153.69,0.04798218]
[1762527229299,3.11875744,153.73,153.69,0.04798218]
[1762527229688,0.04875744,153.73,153.69,0.04798218]
[1762527230490,5.8594,153.71,153.69,0.04798218]
[1762527230798,0.04875744,153.73,153.69,0.04798218]
[1762527231289,0.04875744,153.73,153.69,3.17798218]
[1762527231694,0.04875744,153.73,153.69,0.04798218]
[1762527231994,0.04875744,153.73,153.69,3.17798218]
[1762527233082,3.11875744,153.73,153.69,0.04798218]
[1762527233283,5.8597,153.71,153.69,0.04798218]
[1762527233489,8.9297,153.71,153.69,0.04798218]
[1762527233685,3.07,153.7,153.58,18.58783399]
[1762527233890,5.8612,153.67,153.59,3.13]
[1762527234196,3.07,153.7,153.59,3.13]
[1762527234398,5.8624,153.64,153.59,3.13]
[1762527234696,3.07,153.7,153.6,0.04693032]
[1762527234885,3.07,153.7,153.6,5.8634]
[1762527235088,0.04482069,153.67,153.63,0.04181742]
[1762527235799,0.04482069,153.67,153.63,3.17181742]
[1762527237095,3.07,153.75,153.66,3.13]
[1762527237791,3.07,153.84,153.66,3.13]
[1762527238098,3.07,153.79,153.66,3.13]
[1762527238297,3.07,153.76,153.73,0.04984344]
[1762527238499,3.07,153.76,153.73,0.04284719]
[1762527238701,8.9279,153.75,153.73,0.04284719]
[1762527239201,3.07,153.74,153.73,0.04284719]
[1762527239699,0.04295378,153.77,153.73,0.04284719]
[1762527239895,3.11295378,153.77,153.73,0.04284719]
[1762527240500,3.07,153.75,153.62,3.13]
[1762527241006,3.07,153.8,153.65,15.45783399]
[1762527241307,5.857,153.78,153.7,8.9895]
[1762527241500,0.04328275,153.74,153.72,3.13]
[1762527241708,3.07,153.93,153.72,3.13]
[1762527241903,3.07,153.9,153.77,3.13]
[1762527242200,3.07,153.95,153.78,3.13]
[1762527242404,3.07,153.94,153.79,5.70415979]
[1762527242602,3.07,153.94,153.78,3.13]
[1762527242801,3.11810168,153.88,153.85,0.04470119]
[1762527243000,0.04536557,153.88,153.85,0.04714677]
[1762527243303,5.70415979,153.99,153.85,0.04714677]
[1762527243304,3.07,154.0,153.87,3.13]
[1762527243502,5.8502,153.96,153.87,3.13]
[1762527243704,90.9934,153.97,153.83,5.70415979]
[1762527243916,3.07,153.93,153.82,3.13]
[1762527244205,0.04416017,153.89,153.86,0.04329671]
[1762527244595,0.04416017,153.89,153.86,3.17329671]
[1762527244802,3.07,154.04,153.89,3.13]
[1762527245000,3.07,154.04,153.91,8.89415979]
[1762527245204,3.07,154.04,153.88,5.70415979]
[1762527245411,3.07,154.04,153.92,3.19]
[1762527245707,0.04160888,154.0,153.96,0.04255934]
[1762527245908,5.8494,153.98,153.96,0.04255934]
[1762527246110,0.04160888,154.0,153.96,3.23255934]
[1762527246410,3.02160888,154.0,153.96,0.04255934]
[1762527246602,2.98,153.96,153.82,5.70415979]
[1762527246809,5.8533,153.87,153.8,3.19]
[1762527247002,5.70415979,153.97,153.83,3.19]
[1762527247204,2.98,153.97,153.83,3.19]
[1762527247402,2.98,153.96,153.83,3.19]
[1762527247805,0.04157429,153.91,153.89,3.19]
[1762527248204,0.04157429,153.91,153.88,0.04155053]
[1762527248400,5.8525,153.9,153.88,0.04155053]
[1762527248902,0.04157429,153.91,153.88,0.04155053]
[1762527249610,0.04157429,153.91,153.88,3.23155053]
[1762527249808,2.98,154.01,153.89,3.19]
[1762527250005,2.98,153.98,153.84,3.19]
[1762527250809,0.04816416,153.93,153.89,0.04960355]
[1762527251005,0.04290278,153.93,153.9,3.19]
[1762527251312,0.00290278,153.93,153.9,3.19]
[1762527251511,0.00290278,153.93,153.92,3.19]
[1762527252312,0.00290278,153.93,153.89,3.23251784]
[1762527254107,0.00290278,153.93,153.9,5.8519]
[1762527254307,0.00290278,153.93,153.91,3.19]
[1762527255402,0.00290278,153.93,153.89,3.23251784]
[1762527255810,2.98,154.07,153.92,3.19]
[1762527256310,2.98,154.03,153.92,3.19]
[1762527256606,2.98,153.98,153.82,5.70415979]
[1762527256912,5.853,153.88,153.82,3.19]
[1762527257111,0.04259195,153.87,153.83,3.23896112]
[1762527257309,0.04259195,153.87,153.83,3.23437587]
[1762527257712,0.04259195,153.87,153.83,9.08897587]
[1762527258016,0.04259195,153.87,153.84,3.19]
[1762527258208,2.98,153.98,153.86,3.19]
[1762527258403,2.98,153.98,153.87,62.0]
[1762527258714,5.8496,153.97,153.87,65.19]
[1762527258907,2.98,153.98,153.88,3.19]
[1762527259110,2.98,154.02,153.88,3.19]
[1762527259304,3.0221957,153.97,153.93,0.04346369]
[1762527259508,3.0221957,153.97,153.82,3.19]
[1762527259711,8.68415979,153.97,153.82,3.19]
[1762527259916,2.98,153.93,153.77,8.89415979]
[1762527260211,2.98,153.87,153.72,282.16703796]
[1762527260517,8.8366,153.79,153.78,0.04500416]
[1762527260718,2.98,153.79,153.71,3.19]
[1762527260912,5.8564,153.8,153.71,3.19]
[1762527261113,2.98,153.84,153.71,3.19]
[1762527261617,2.98,153.84,153.76,0.0443567]
[1762527261618,0.04398979,153.79,153.76,0.0443567]
[1762527261811,2.98,153.78,153.66,78.25]
[1762527262414,2.98,153.78,153.67,65.19]
[1762527262618,2.98,153.78,153.68,3.19]
[1762527262920,0.04747433,153.75,153.71,0.04795449]
[1762527263121,3.02747433,153.75,153.71,0.04795449]
[1762527263416,0.04747433,153.75,153.71,3.23795449]
[1762527263619,2.98,153.85,153.72,3.19]
[1762527264521,0.04758986,153.8,153.77,0.04732915]
[1762527266026,3.02758986,153.8,153.77,0.04732915]
[1762527266321,0.04758986,153.8,153.77,0.04732915]
[1762527266520,2.98,153.79,153.67,8.89415979]
[1762527266713,5.8578,153.76,153.67,8.89415979]
[1762527266918,2.98,153.79,153.67,3.19]
[1762527267120,2.98,153.78,153.66,75.06]
[1762527267417,2.98,153.83,153.68,3.19]
[1762527267727,8.87951398,153.77,153.74,0.04839715]
[1762527268022,3.02651074,153.77,153.74,0.04177216]
[1762527268217,0.04651074,153.77,153.74,0.04177216]
[1762527268416,3.02651074,153.77,153.74,0.04177216]
[1762527268820,2.98,153.75,153.62,8.89415979]
[1762527269013,2.98,153.75,153.63,3.19]
[1762527269419,2.98,153.75,153.64,3.19]
[1762527269615,2.98,153.75,153.65,62.0]
[1762527269813,0.04121873,153.72,153.68,0.04634004]
[1762527270922,0.04121873,153.72,153.69,3.19]
[1762527271314,0.04121873,153.72,153.68,0.04634004]
[1762527271924,0.04121873,153.72,153.68,3.23634004]
[1762527272326,3.02121873,153.72,153.68,0.04634004]
[1762527272621,5.86,153.7,153.68,0.04634004]
[1762527272826,0.04121873,153.72,153.68,3.23634004]
[1762527273625,2.98,153.87,153.7,5.70415979]
[1762527273922,2.98,153.87,153.75,3.19]
[1762527274121,5.8554,153.82,153.75,3.19]
[1762527274319,2.98,153.87,153.75,3.19]
[1762527274719,2.98,153.82,153.79,0.04717858]
[1762527275026,3.02723194,153.82,153.79,0.04542087]
[1762527275726,5.8559,153.81,153.79,0.04542087]
[1762527275922,8.9459,153.81,153.79,0.04542087]
[1762527276124,0.04723194,153.82,153.79,0.04542087]
[1762527276328,3.09,153.91,153.79,2.98542087]
[1762527276623,3.09,153.96,153.82,8.64415979]
[1762527276825,3.09,153.96,153.82,2.94]
[1762527277420,0.04432543,153.91,153.87,0.04927646]
[1762527277628,3.13432543,153.91,153.87,0.04927646]
[1762527277920,0.04432543,153.91,153.87,0.04927646]
[1762527278514,0.04432543,153.91,153.87,2.98927646]
[1762527279122,3.09,154.0,153.87,2.98927646]
[1762527279327,5.8502,153.96,153.87,2.94]
[1762527279716,3.09,154.0,153.9,2.94]
[1762527280121,0.04277146,153.97,153.93,3.09624993]
[1762527281833,0.04277146,153.97,153.93,0.04624993]
[1762527282031,0.04277146,153.97,153.95,3.05]
[1762527282227,0.00277146,153.97,153.96,5.70415979]
[1762527282425,0.00277146,153.97,153.96,3.05]
[1762527282826,2.95,154.07,153.96,3.05]
[1762527283026,5.8472,154.03,153.96,3.05]
[1762527283332,2.95,154.07,153.91,8.75415979]
[1762527283522,2.95,154.07,153.92,3.05]
[1762527283723,5.848,154.01,153.92,3.05]
[1762527283935,0.0436868,154.01,153.98,0.04702477]
[1762527285231,0.0436868,154.01,153.98,3.09702477]
[1762527285622,0.0436868,154.01,153.98,0.04702477]
[1762527286227,2.9936868,154.01,153.98,0.04702477]
[1762527286534,0.0436868,154.01,153.98,0.04702477]
[1762527287034,2.9936868,154.01,153.98,0.04702477]
[1762527287230,8.7986,154.0,153.98,0.04702477]
[1762527287428,0.0436868,154.01,153.88,3.05]
[1762527287429,2.95,153.99,153.88,3.05]
[1762527288029,2.95,153.97,153.84,3.05]
[1762527288230,2.95,153.97,153.8,3.05]
[1762527288436,2.95,153.89,153.75,3.05]
[1762527288828,5.8536,153.86,153.75,3.05]
[1762527289030,2.95,153.89,153.75,3.05]
[1762527289240,2.95,153.89,153.76,62.0]
[1762527289539,2.95,153.89,153.77,3.05]
[1762527289730,90.9612,154.03,153.81,3.09400438]
[1762527289731,0.04660167,153.84,153.81,3.09400438]
[1762527289931,0.04993931,153.84,153.81,3.09815439]
[1762527291138,0.04993931,153.84,153.81,0.04815439]
[1762527293038,2.99993931,153.84,153.81,0.04815439]
[1762527293232,5.8546,153.83,153.81,0.04815439]
[1762527293428,0.04993931,153.84,153.81,0.04815439]
[1762527293839,2.99993931,153.84,153.81,0.04815439]
[1762527294035,0.04993931,153.84,153.81,0.04815439]
[1762527294937,0.04993931,153.84,153.81,3.09815439]
[1762527295240,2.95,154.01,153.84,3.05]
[1762527295535,9.693803,154.04,153.84,3.05]
[1762527295737,2.95,154.03,153.84,3.05]
[1762527296041,0.04694579,153.95,153.92,0.04979683]
[1762527296246,0.0455979,153.95,153.92,3.09244657]
[1762527296537,2.95,154.03,153.92,8.92082354]
[1762527296741,2.95,154.03,153.92,8.87837697]
[1762527296942,5.8485,153.99,153.93,3.05]
[1762527297546,0.04926595,153.98,153.94,3.0925031]
[1762527298437,2.99926595,153.98,153.94,0.0425031]
[1762527298637,0.04926595,153.98,153.94,0.0425031]
[1762527299041,2.99926595,153.98,153.94,0.0425031]
[1762527300540,5.8496,153.96,153.94,0.0425031]
[1762527300743,8.7996,153.96,153.94,0.0425031]
[1762527301141,5.8522,153.89,153.85,5.82837697]
[1762527301345,2.95,153.94,153.84,3.05]